Cogmind - Beta 9.6 @@@ ROGUE MODE // 2020.06.02 @ 09:41:50 Player: Terminus Result: Destroyed by as-57581 with Assembled Rifle Performance ------------- Evolutions (0) 0 Regions Visited (0) 0 Robots Destroyed (14) 70 Value Destroyed (6) 6 Prototype IDs (0) 0 Alien Tech Used (0) 0 Bonus (0) 0 TOTAL SCORE: 76 Bonus ------- None Cogmind --------- Core Integrity 0/250 Matter 271/300 Energy 100/100 System Corruption 1% Temperature Cool (0) Movement Core (50) Location -11/Scrapyard Parts ------- > --- POWER (1) -------- (None) > --- PROPULSION (2) --- (None) > --- UTILITY (2) ------ (None) > --- WEAPON (2) ------- (None) > --- INVENTORY (4) ---- Light Ion Engine Peak State ------------ > --- POWER ------------ Ion Engine > --- PROPULSION ------- Aluminum Leg Aluminum Leg > --- UTILITY ---------- Small Storage Unit > --- WEAPON ----------- Assault Rifle Assault Rifle > --- INVENTORY -------- (None) [Rating: 6] Favorites ----------- Power Ion Engine Engine Ion Engine Propulsion Aluminum Leg Treads Light Treads Leg Aluminum Leg Wheel Compact Wheel Utility Small Storage Unit Storage Small Storage Unit Weapon Assault Rifle Energy Gun Small Laser Ballistic Gun Assault Rifle Special Weapon Mining Laser Build | -11 ------- Run | Scr Slots Evolved . | . Power . | . Propulsion . | . Utility . | . Weapon . | . Parts Attached 10 | 10 Power 1 | 1 Engine 1 | 1 Core . | . Reactor . | . Propulsion 4 | 4 Treads 1 | 1 Leg 2 | 2 Wheel 1 | 1 Hover . | . Flight . | . Utility 1 | 1 Device . | . Storage 1 | 1 Processor . | . Hackware . | . Protection . | . Artifact . | . Weapon 4 | 4 Energy Gun 1 | 1 Energy Cannon . | . Ballistic Gun 2 | 2 Ballistic Cannon . | . Launcher . | . Special Weapon 1 | 1 Impact Weapon . | . Slashing Weapon . | . Piercing Weapon . | . Special Melee Weapon . | . Unidentified Prototypes . | . Parts Lost 7 | 7 Power 1 | 1 Propulsion 2 | 2 Utility . | . Weapon 4 | 4 Highest Loss Streak 4 | 4 Average Slot Usage (%) . | . Naked Turns . | . Heaviest Build 13 | 13 Greatest Support 20 | 20 Greatest Overweight (x) 4 | 4 Average Overweight (x) . | . Largest Inventory Capacity 6 | 6 Average Capacity 5 | 5 Most Carried 1 | 1 Average Carried . | . Final Capacity 4 | 4 Final Carried 1 | 1 Class Distribution -------------------- None Dominant Class ---------------- None Resources | -11 ----------- Run | Scr Matter Collected 429 | 429 Remotely . | . Salvage Created 254 | 254 Parts 2 | 2 Haulers Intercepted . | . Recyclers Shooed . | . Parts Field Recycled . | . Retrieved Matter . | . Parts Self-Destructed . | . Prevented . | . Kills | -11 ------- Run | Scr Combat Hostiles Destroyed 13 | 13 Guns 13 | 13 Classes Destroyed 2 | 2 Recycler 1 | 1 Assembled 13 | 13 Best Kill Streak 5 | 5 Combat Bots Only 5 | 5 Max Kills in Single Turn 2 | 2 Gunslinging 1 | 1 Exploded . | . Melee . | . Uniques/NPCs Destroyed . | . Combat | -11 -------- Run | Scr Damage Taken 954 | 954 Core 252 | 252 Absorbed by Shields . | . Core Remaining (%) . | . Volleys Fired 54 | 54 Largest 2 | 2 Hottest 60 | 60 Shots Fired 90 | 90 Gun 90 | 90 Cannon . | . Launcher . | . Special . | . Kinetic 70 | 70 Thermal 20 | 20 Explosive . | . Electromagnetic . | . Robot Hit Streak 7 | 7 Robot Miss Streak 4 | 4 Penetration Max . | . Secondary Targets 2 | 2 Max Gunslinging Chain 1 | 1 Shots Hit Robots 56 | 56 Core Hits 32 | 32 Critical Hits 2 | 2 Critical Kills 1 | 1 Critical Parts Destroyed 1 | 1 Melee Attacks . | . Impact . | . Slashing . | . Piercing . | . Sneak Attacks . | . Combat Hostiles . | . Follow-up Attacks . | . Damage Inflicted 666 | 666 Guns 653 | 653 Cannons . | . Explosions . | . Melee . | . Ramming 13 | 13 Kinetic 485 | 485 Thermal 168 | 168 Explosive . | . Electromagnetic . | . Impact . | . Slashing . | . Piercing . | . Highest Corruption 1 | 1 Average Corruption 1 | 1 Corruption Purged . | . Overload Shots . | . Overflow Damage . | . Projectiles . | . Explosions . | . Melee . | . Knockbacks . | . Impact . | . Kinetic . | . Secondary . | . Self-Inflicted Damage 5 | 5 Shots . | . Rammed 5 | 5 Targets Rammed 5 | 5 Kicked . | . Crushed . | . Highest Temperature 20 | 20 Average Temperature 11 | 11 Received Heat Transfer 380 | 380 Siege Activations . | . Robots Corrupted . | . Combat Hostiles . | . Parts Fried . | . Impact Corruptions . | . Robots Melted . | . Combat Hostiles . | . Parts Melted . | . Heat Transferred 375 | 375 Parts Sabotaged . | . Parts Stolen . | . Parts Stripped . | . Power Chain Reactions . | . Missiles Intercepted . | . Alert | -11 ------- Run | Scr Peak Influence 15 | 15 Average Influence 1 | 1 Maximum Alert Level . | . Low Security (%) 100 | 100 Level 1 . | . Level 2 . | . Level 3 . | . Level 4 . | . Level 5 . | . High Security . | . Max Security . | . Squads Dispatched . | . Investigation . | . Extermination . | . Reinforcement . | . Assault . | . Garrison . | . Intercept . | . Construction Impeded . | . Haulers Reinforced . | . Stealth | -11 --------- Run | Scr Distress Signals . | . Communications Jammed . | . Distress Signals . | . Times Spotted 15 | 15 Peak Tracking Total 5 | 5 Tactical Retreats . | . Traps | -11 ------- Run | Scr Traps Triggered . | . Indirectly . | . Trap Hack Attempts . | . Triggered . | . Disarmed . | . Reprogrammed . | . Reused . | . Traps Extracted . | . Installed . | . Triggered . | . Machines | -11 ---------- Run | Scr Machines Disabled . | . Max in Single Turn . | . Machines Sabotaged . | . Garrisons Compromised . | . Overloaded Fab Kills . | . Fab Network Shutdowns . | . Hacking | -11 --------- Run | Scr Machines Accessed . | . Terminals . | . Fabricators . | . Repair Stations . | . Recycling Units . | . Scanalyzers . | . Garrison Access . | . Total Hacks . | . Successful . | . Failed . | . Catastrophic . | . Database Lockouts . | . Manual . | . Terminals . | . Fabricators . | . Repair Stations . | . Recycling Units . | . Scanalyzers . | . Garrison Access . | . Terminal Hacks . | . Fabricator Hacks . | . Repair Station Hacks . | . Recycling Unit Hacks . | . Scanalyzer . | . Garrison Access Hacks . | . Unauthorized Hacks . | . Terminals . | . Fabricators . | . Repair Stations . | . Recycling Units . | . Scanalyzers . | . Garrison Access . | . Data Cores Recovered . | . Used . | . Hacking Detections . | . Full Trace Events . | . Feedback Events . | . Feedback Blocked . | . Robot Schematics Acquired . | . Robots Built . | . Matter . | . Time . | . Total Robot Build Rating . | . Part Schematics Acquired . | . Parts Built . | . Matter . | . Time . | . Total Part Build Rating . | . Parts Repaired . | . Time . | . Parts Recycled . | . Recycled Matter . | . Retrieved Matter . | . Retrieved Components . | . Parts Scanalyzed . | . Part Schematics Acquired . | . Parts Damaged . | . Bothacking | -11 ------------ Run | Scr Used RIF Installer . | . Robots Hacked . | . Non-combat . | . Combat . | . Robot Hacks Applied . | . Relay Couplers Released . | . Robots Rewired . | . Allies Hacked . | . Hacks Repelled . | . Allies | -11 -------- Run | Scr Total Allies . | . Largest Group . | . Highest-Rated Group . | . Highest-Rated Ally . | . Total Orders . | . Ally Attacks . | . Total Damage . | . Kills . | . Allies Corrupted . | . Allies Melted . | . Intel | -11 ------- Run | Scr Robot Analysis Total . | . Derelict Logs Recovered . | . Drone Launches . | . Drone Recoveries . | . Exploration | -11 ------------- Run | Scr Turns Passed 1987 | 1987 Spaces Moved 314 | 314 Core 19 | 19 Treads . | . Legs 189 | 189 Wheels 106 | 106 Hover . | . Flight . | . Fastest Speed 50 | 50 Average Speed 114 | 114 Slowest Speed 250 | 250 Overloaded Moves . | . Propulsion Burnouts . | . Robots Hopped . | . Cave-ins Triggered . | . Exploration Rate (%) 35 | 35 Regions Visited . Branch Regions . Pre-discovered Areas . | . Known Exits Taken . | . Unknown Exits Taken . | . Scrap Searched . | . Spaces Dug . | . Terrain Destroyed . | . Melee . | . Projectile . | . AOE . | . Actions | -11 --------- Run | Scr Total 1847 | 1847 Wait 1459 | 1459 Move 314 | 314 Hop . | . Pick Up 2 | 2 Fast Attach 9 | 9 Attach 1 | 1 Detach . | . Swap . | . Drop 3 | 3 Fire 54 | 54 Melee . | . Ram 5 | 5 Kick . | . Crush . | . Escape Stasis . | . Rewire . | . Trap . | . Miscellaneous . | . Route ------- -11/Scrapyard (discovered 1 exit: [*Mat]) History --------- Turn | Location | Event 13 | -11/Scrapyard | Discovered new exit (range 15) 1450 | -11/Scrapyard | Assembled infested the area 1833 | -11/Scrapyard | Lost 3 parts (1n2w) 1899 | -11/Scrapyard | Core integrity fell below 50% 1949 | -11/Scrapyard | Lost 4 parts (1p1n2w) 1964 | -11/Scrapyard | Core integrity fell below 20% 1988 | -11/Scrapyard | Destroyed by as-57581 with Assembled Rifle Last Messages --------------- 01843_ Acquired 14 matter. 01851_ Acquired 18 matter. 01856_ Mining Laser destroyed. 01859_ Aluminum Leg destroyed. 01862_ as-33692 destroyed. 01866_ as-38496 destroyed. 01868_ Acquired 18 matter. 01875_ Acquired Lgt. Ion Engine. 01889_ Ion Engine destroyed. 01900_ as-86118 destroyed. 01902_ Acquired 15 matter. 01918_ Sml. Laser destroyed. 01950_ Slammed into as-39205. 01952_ Destabilizing: System corrupted (+1). 01953_ Slammed into as-39205. 01954_ Destabilizing: Core damaged (-12). 01971_ Acquired Lgt. Treads. 01985_ Dropped Sml. Storage Unit. 01986_ Dropped Com. Wheel. 01986_ Dropped Lgt. Treads. Map ----- +----------------------------------------------------+ | ?????????????????????????????????????????????????? | | ?????????????????????????????????????????????????? | | ?????????????????????????????????????????????????? | | ?????????????????????????????????????????????????? | | ?????????????????????????????????????????????????? | | ?????????????????????????????????????????????????? | | ?????????????????????????????????????????????????? | | ?????????????????????????????????????????????????? | | ?????????????????????????????????????????????????? | | ?????????????????????????????????????????????????? | | ?????????????????????????????????????????????????? | | ?????????????????????????? ??????????????????????? | | ?????????????????????????? ??????????????????????? | | ??????????????????????????!#?????????????????????? | | ??????????????????????????]#?????????????????????? | | ??????????????????????????%#?????????????????????? | | ??????????????????????????=#?????????????????????? | | ?????????????????????????? #?????????????????????? | | ????????????????????????##a#?????????????????????? | | ???????????????????????? #?????????????????????? | | ???????????????????????? #?????????????????????? | | ????????????????????????# #?????????????????????? | | ?########???????????????# #?????????????????????? | | ?# #???????????????#% #?????????????????????? | | ?# #???????????????# #?????????????????????? | | ?# #????????????####@ ####??????????????????? | | ?# ##########???# #??????????????????? | | ?# # #???# != #???#??????????????? | | ??? # #???# = ### #####??????????? | | ##### ### #####a ???????????? | | * !%|%??????????? | | = | = ### #####??????????? | | ######### ##### ! < #??? ?????????????? | | #??????# ==#???# #???? ???????????? | | #??????# #???##########?????? ???????????? | | #??????#### ###########????????????????????????? | | ############ # #????????????????????????? | | ?# # # #????????????????????????? | | ?# % #????????????????????????? | | ?# #% # #????????????????????????? | | ?# # ###########????????????????????????? | | ?########### ##?????????????????????????????????? | | ?# # #?????????????????????????????????? | | ########??????????????????????????? | | ?# # # #??????????????????????????? | | ?# # # #??????????????????????????? | | ?# ?## *## #??????????????????????????? | | ?# ???#= ## #################??????????? | | ?# ???#! ## ## #??????????? | | ?# ????# ## ??# ## #??????????? | +----------------------------------------------------+ Best States ------------- Heat Dissipation 25 Energy Generation 10 Energy Capacity 250 Matter Stores 281 Matter Capacity 300 Sight Range 16 Terrain Scan Density 10 Evasion (%) 40 Item Schematics ----------------- None Robot Schematics ------------------ None Fabricated ------------ Nothing Alien Tech Used ----------------- None Achievements -------------- None Challenges ------------ None Game ------ Seed OmegaScatterPlating Manual? 0 Play Time 00:09:08 Cumulative 1035.7 hours Start 2020.06.02 @ 09:37:06 End 2020.06.02 @ 09:41:50 Sessions 0 Manual Loads 0 Difficulty Rogue Special Mode None Game No. 339 Rogue 339 Adventurer 0 Explorer 0 Win Type - Total 76 Types 14/8/34/5/1/2/12 Lore% 97 Gallery% 96 Achievement% 85 Wizard Run 0 Options --------- ASCII 0 Keyboard 0 Movement Numpad Keybinds 0 Fullscreen 1 Font 18/SmallcapsGlow Map View 76x50 Tactical HUD 1 Map Filters NONE Filters NONE Steam 1 RUN: 48ae21ff-20c4-4e3b-97a6-1ba10654123d